Cogmind - Beta 16 @@@ ROGUE MODE // 2026.02.02 @ 00:00:30 Player: Ev Result: Destroyed by G-47 Trooper with Particle Gun Performance ------------- Evolutions (2) 1000 Regions Visited (5) 1000 Robots Destroyed (24) 120 Value Destroyed (777) 777 Prototype IDs (27) 540 Alien Tech Used (0) 0 Bonus (300) 300 TOTAL SCORE: 3737 Bonus ------- Aligned with FarCom 300 Cogmind --------- Core Integrity 0/550 Matter 6/300 Energy 51/100 System Corruption 7% Temperature Cool (18) Movement Core (50) Location -8/Materials Parts ------- > --- POWER (1) -------- (None) > --- PROPULSION (2) --- (None) > --- UTILITY (4) ------ Small Storage Unit Advanced Weight Redist. System Modified TNC Advanced Targeting Computer > --- WEAPON (4) ------- (None) > --- INVENTORY (8) ---- Compact Matter Pod (0) Particle Charger Light Armor Plating Hardened Medium Armor Plating Advanced Assault Cannon Advanced Assault Cannon Advanced Assault Cannon Mining Laser Peak State ------------ > --- POWER ------------ Deuterium Engine > --- PROPULSION ------- Armored Treads > --- UTILITY ---------- Small Storage Unit Modified TNC Advanced Targeting Computer Hardened Medium Armor Plating > --- WEAPON ----------- Advanced Assault Cannon Advanced Assault Cannon Advanced Assault Cannon Advanced Assault Cannon > --- INVENTORY -------- Compact Matter Pod Particle Charger Light Armor Plating Mining Laser [Rating: 35] Favorites ----------- Power Ion Engine Engine Ion Engine Propulsion Compact Wheel Treads Armored Treads Wheel Compact Wheel Utility Small Storage Unit Device Sensor Array Storage Small Storage Unit Processor Modified TNC Hackware Hacking Suite Protection Hardened Medium Armor Plating Weapon Heavy Assault Rifle Energy Gun EM Pulse Gun Ballistic Gun Heavy Assault Rifle Ballistic Cannon Advanced Assault Cannon Special Weapon Mining Laser Build | -11 -10 -10 -10 -9 -8 ------- Run | Yrd Mat Min Exi Min Mat Slots Evolved 4 | . . . . . 4 Power . | . . . . . . Propulsion . | . . . . . . Utility 2 | . . . . . 2 Weapon 2 | . . . . . 2 Parts Attached 29 | 6 4 . 1 2 16 Power 2 | 1 . . . . 1 Engine 2 | 1 . . . . 1 Core . | . . . . . . Reactor . | . . . . . . Propulsion 3 | 2 . . . . 1 Treads 1 | . . . . . 1 Leg . | . . . . . . Wheel 2 | 2 . . . . . Hover . | . . . . . . Flight . | . . . . . . Utility 10 | 1 1 . 1 . 7 Device 4 | . 1 . . . 3 Storage 2 | 1 . . . . 1 Processor 2 | . . . 1 . 1 Hackware 1 | . . . . . 1 Protection 1 | . . . . . 1 Artifact . | . . . . . . Weapon 14 | 2 3 . . 2 7 Energy Gun 1 | 1 . . . . . Energy Cannon . | . . . . . . Ballistic Gun 6 | 1 3 . . 1 1 Ballistic Cannon 6 | . . . . . 6 Launcher . | . . . . . . Special Weapon 1 | . . . . 1 . Impact Weapon . | . . . . . . Slashing Weapon . | . . . . . . Piercing Weapon . | . . . . . . Special Melee Weapon . | . . . . . . Unidentified Prototypes 1 | . . . 1 . . Parts Lost 8 | . . . . . 8 Power 1 | . . . . . 1 Propulsion 2 | . . . . . 2 Utility 3 | . . . . . 3 Weapon 2 | . . . . . 2 Highest Loss Streak 3 | . . . . . 3 To Critical Strikes . | . . . . . . Average Backups 5 | . 3 6 6 7 6 Power . | . . . . . . Propulsion . | . . . . . . Utility 2 | . 1 3 3 4 3 Weapon 2 | . 1 3 3 3 2 Tool/Special . | . . . . . . Unused Backups 5 | . . . . . 5 Power . | . . . . . . Propulsion . | . . . . . . Utility 5 | . . . . . 5 Weapon . | . . . . . . Tool/Special . | . . . . . . Average Slot Usage (%) 95 | . 97 100 100 100 91 Engine 11 | . 14 14 14 14 8 Wheel 22 | . 28 28 28 28 14 Device 8 | . 11 14 8 . 8 Storage 11 | . 14 14 14 14 9 Processor 7 | . . . 5 14 10 Protection 2 | . . . . . 4 Ballistic Gun 19 | . 25 28 28 26 10 Ballistic Cannon 9 | . . . . . 22 Peak Build Rating 35 | 6 10 10 15 15 35 Average Rating 17 | 3 8 10 11 14 27 On Entrance 9 | . 6 10 10 15 15 Avg Prop Armor Cover (%) . | . . . . . . Naked Turns . | . . . . . . Heaviest Build 47 | 13 17 17 17 16 47 Greatest Support 26 | 26 26 26 26 26 26 Greatest Overweight (x) 2 | . . . . . 2 Average Overweight (x) . | . . . . . . Largest Inventory Capacity 8 | 8 8 8 8 8 8 Average Capacity 7 | 6 8 8 8 8 8 Most Carried 8 | 2 6 6 7 8 8 Average Carried 5 | . 3 6 6 7 6 Final Capacity 8 | 8 8 8 8 8 8 Final Carried 8 | . 6 6 7 7 8 Class Distribution -------------------- 62% | Mutant 37% | Skirmisher Dominant Class ---------------- Mutant | -10/Materials Mutant | -10/Mines Mutant | -10/Exiles Mutant | -9/Mines Skirmisher | -8/Materials Resources | -11 -10 -10 -10 -9 -8 ----------- Run | Yrd Mat Min Exi Min Mat Matter Collected 1059 | 208 136 . . 30 685 Remotely . | . . . . . . Salvage Created 653 | . 50 . . 30 573 Parts 40 | . 8 . . 2 30 Haulers Intercepted 1 | . . . . . 1 Recyclers Shooed 1 | . . . . 1 . Parts Field Recycled . | . . . . . . Retrieved Matter . | . . . . . . Parts Self-Destructed . | . . . . . . Prevented . | . . . . . . Parts Restored . | . . . . . . Kills | -11 -10 -10 -10 -9 -8 ------- Run | Yrd Mat Min Exi Min Mat Combat Hostiles Destroyed 16 | . 2 . . . 14 Guns 2 | . 2 . . . . Cannons 14 | . . . . . 14 Classes Destroyed 11 | . 2 . . 1 8 Worker 1 | . . . . . 1 Builder 1 | . . . . . 1 Tunneler 2 | . . . . 1 1 Hauler 1 | . . . . . 1 Operator 2 | . 1 . . . 1 Watcher 1 | . . . . . 1 Swarmer 2 | . 2 . . . . Grunt 8 | . . . . . 8 Duelist 1 | . . . . . 1 Sentry 4 | . . . . . 4 Hunter 1 | . . . . . 1 Best Kill Streak 6 | . 2 . . 1 6 Combat Bots Only 4 | . 2 . . . 4 Max Kills in Single Turn 2 | . 1 . . 1 2 Gunslinging . | . . . . . . Exploded . | . . . . . . Melee . | . . . . . . Uniques/NPCs Destroyed . | . . . . . . Combat | -11 -10 -10 -10 -9 -8 -------- Run | Yrd Mat Min Exi Min Mat Hostile Shots Fired 159 | . 6 . . 2 151 Missed 48 | . 1 . . 1 46 Hits 111 | . 5 . . 1 105 Melee 1 | . . . . 1 . Projectile 110 | . 5 . . . 105 Critical Strikes 2 | . . . . . 2 Damage Taken 1887 | . 45 . . 28 1814 Core 573 | . 8 . . . 565 Absorbed by Shields . | . . . . . . Core Remaining (%) 98 | 100 . . . 96 . Volleys Fired 52 | . 5 . . 4 43 Largest 4 | . 2 . . 2 4 Hottest 160 | . 46 . . 100 160 Shots Fired 158 | . 10 . . 7 141 Gun 33 | . 10 . . 6 17 Cannon 124 | . . . . . 124 Launcher . | . . . . . . Special 1 | . . . . 1 . Kinetic 157 | . 10 . . 6 141 Thermal 1 | . . . . 1 . Explosive . | . . . . . . Electromagnetic . | . . . . . . Robot Hit Streak 6 | . 2 . . 4 6 Robot Miss Streak 7 | . 2 . . 1 7 Penetration Max . | . . . . . . Secondary Targets 1 | . 1 . . . . Max Gunslinging Chain 1 | . 1 . . . . Shots Hit Robots 76 | . 4 . . 4 68 Core Hits 43 | . 3 . . 1 39 Critical Kills . | . . . . . . Critical Parts Destroyed . | . . . . . . Critical Strikes 2 | . . . . . 2 Blast 2 | . . . . . 2 Melee Attacks . | . . . . . . Impact . | . . . . . . Slashing . | . . . . . . Piercing . | . . . . . . Sneak Attacks . | . . . . . . Combat Hostiles . | . . . . . . Follow-up Attacks . | . . . . . . Damage Inflicted 1856 | . 64 . . 61 1731 Guns 219 | . 64 . . 61 94 Cannons 1609 | . . . . . 1609 Explosions . | . . . . . . Melee . | . . . . . . Ramming 28 | . . . . . 28 Kinetic 1828 | . 64 . . 61 1703 Thermal . | . . . . . . Explosive . | . . . . . . Electromagnetic . | . . . . . . Impact . | . . . . . . Slashing . | . . . . . . Piercing . | . . . . . . Highest Corruption 7 | . . . . . 7 Average Corruption 7 | . . . . . 7 Corruption Purged . | . . . . . . Corruption Blocked . | . . . . . . Effects 8 | . . . . . 8 Message Errors 2 | . . . . . 2 Matter Fused 4 | . . . . . 4 Heat Flow Errors 1 | . . . . . 1 Data Loss (minor) 1 | . . . . . 1 Overload Shots . | . . . . . . Overflow Damage 16 | . . . . . 16 Projectiles 16 | . . . . . 16 Explosions . | . . . . . . Melee . | . . . . . . Knockbacks 21 | . . . . . 21 Impact . | . . . . . . Kinetic 16 | . . . . . 16 Secondary 5 | . . . . . 5 Self-Inflicted Damage 8 | . . . . . 8 Shots . | . . . . . . Rammed 7 | . . . . . 7 Targets Rammed 7 | . . . . . 7 Kicked . | . . . . . . Crushed . | . . . . . . Highest Temperature 333 | . . . . 20 333 Average Temperature 113 | . . . . 12 115 Received Heat Transfer 861 | . 6 . . . 855 Effects 1 | . . . . . 1 Energy Bleed 1 | . . . . . 1 Siege Activations . | . . . . . . Martial Activations . | . . . . . . Shielding Activations . | . . . . . . Robots Disrupted . | . . . . . . Combat Hostiles . | . . . . . . Robots Corrupted . | . . . . . . Combat Hostiles . | . . . . . . Parts Fried . | . . . . . . Impact Corruptions . | . . . . . . Robots Melted . | . . . . . . Combat Hostiles . | . . . . . . Parts Melted . | . . . . . . Heat Transferred . | . . . . . . Parts Sabotaged . | . . . . . . Parts Stolen . | . . . . . . Parts Stripped . | . . . . . . Power Chain Reactions . | . . . . . . Alert | -11 -10 -10 -10 -9 -8 ------- Run | Yrd Mat Min Exi Min Mat Maximum Alert Level 1 | . . . . . 1 Low Security (%) 96 | 100 100 100 . 100 94 Level 1 3 | . . . . . 5 Level 2 . | . . . . . . Level 3 . | . . . . . . Level 4 . | . . . . . . Level 5 . | . . . . . . High Security . | . . . . . . Max Security . | . . . . . . Peak Influence 222 | . 50 . . 5 222 Initial . | . . . . . . Average 37 | . 4 . . . 67 Influence Increases 602 | . 71 . . 6 525 Destroy 0b10 Robot/C 320 | . 40 . . . 280 Destroy 0b10 Robot/NC 40 | . 5 . . 5 30 Destroy Leader 94 | . 10 . . . 84 Successful Hack 16 | . 16 . . . . Disable Machine 30 | . . . . . 30 Destroy Structure 42 | . . . . 1 41 Lose Combat Pursuer 60 | . . . . . 60 Influence Decreases 400 | . 71 . . 6 323 Time Decay 330 | . 71 . . 6 253 Lost Part 70 | . . . . . 70 Squads Dispatched 5 | . 2 . . . 3 Investigation 2 | . 1 . . . 1 Extermination . | . . . . . . Reinforcement 3 | . 1 . . . 2 Assault . | . . . . . . Garrison . | . . . . . . Intercept . | . . . . . . Searches Triggered . | . . . . . . Construction Impeded . | . . . . . . Haulers Reinforced . | . . . . . . Active Scanning Responses . | . . . . . . Cargo Convoy Interrupts . | . . . . . . Stealth | -11 -10 -10 -10 -9 -8 --------- Run | Yrd Mat Min Exi Min Mat Distress Signals 3 | . 1 . . . 2 Communications Jammed . | . . . . . . Distress Signals . | . . . . . . Times Spotted 45 | . 7 . . 5 33 Peak Tracking Total 7 | . 3 . . 4 7 Tactical Retreats 2 | . . . . . 2 Traps | -11 -10 -10 -10 -9 -8 ------- Run | Yrd Mat Min Exi Min Mat Traps Triggered 1 | . 1 . . . . Indirectly . | . . . . . . Trap Hack Attempts . | . . . . . . Triggered . | . . . . . . Disarmed . | . . . . . . Reprogrammed . | . . . . . . Reused . | . . . . . . Traps Extracted . | . . . . . . Installed . | . . . . . . Triggered . | . . . . . . Machines | -11 -10 -10 -10 -9 -8 ---------- Run | Yrd Mat Min Exi Min Mat Machines Disabled 2 | . . . . . 2 Max in Single Turn 1 | . . . . . 1 Machines Repaired . | . . . . . . Machines Dismantled . | . . . . . . Machines Sabotaged . | . . . . . . Overloaded Fab Kills . | . . . . . . Hacking | -11 -10 -10 -10 -9 -8 --------- Run | Yrd Mat Min Exi Min Mat Machines Accessed 9 | . 3 . 3 . 3 Terminals 6 | . 3 . . . 3 Fabricators . | . . . . . . Repair Stations . | . . . . . . Recycling Units . | . . . . . . Scanalyzers . | . . . . . . Garrison Access . | . . . . . . Total Hacks 26 | . 12 . 3 . 11 Successful 11 | . 4 . 3 . 4 Failed 15 | . 8 . . . 7 Catastrophic 3 | . 2 . . . 1 Database Lockouts . | . . . . . . Manual 21 | . 11 . 1 . 9 Terminals 23 | . 12 . . . 11 Fabricators . | . . . . . . Repair Stations . | . . . . . . Recycling Units . | . . . . . . Scanalyzers . | . . . . . . Garrison Access . | . . . . . . Terminal Hacks 8 | . 3 . 3 . 2 Record 2 | . . . 2 . . Prototype ID Bank 2 | . 2 . . . . Alert Level 2 | . 1 . . . 1 Locate Traps 1 | . . . . . 1 Proto ID Catalog 1 | . . . 1 . . Fabricator Hacks . | . . . . . . Repair Station Hacks . | . . . . . . Recycling Unit Hacks . | . . . . . . Scanalyzer . | . . . . . . Garrison Access Hacks . | . . . . . . Unauthorized Hacks 3 | . 1 . . . 2 Terminals 3 | . 1 . . . 2 Botnet 1 | . . . . . 1 Operators 2 | . 1 . . . 1 Fabricators . | . . . . . . Repair Stations . | . . . . . . Recycling Units . | . . . . . . Scanalyzers . | . . . . . . Garrison Access . | . . . . . . Data Cores Recovered . | . . . . . . Used . | . . . . . . Hacking Detections 6 | . 3 . . . 3 Full Trace Events 1 | . . . . . 1 Feedback Events 1 | . . . . . 1 Hackware Fried 1 | . . . . . 1 Feedback Blocked . | . . . . . . Robot Schematics Acquired . | . . . . . . Robots Built . | . . . . . . Authchips . | . . . . . . Time . | . . . . . . Total Robot Build Rating . | . . . . . . Part Schematics Acquired . | . . . . . . Parts Built . | . . . . . . Authchips . | . . . . . . Time . | . . . . . . Total Part Build Rating . | . . . . . . Part Studies Acquired . | . . . . . . Parts Repaired . | . . . . . . Time . | . . . . . . Parts Recycled . | . . . . . . Recycled Matter . | . . . . . . Retrieved Matter . | . . . . . . Retrieved Components . | . . . . . . Parts Scanalyzed . | . . . . . . Part Schematics Acquired . | . . . . . . Parts Damaged . | . . . . . . Bothacking | -11 -10 -10 -10 -9 -8 ------------ Run | Yrd Mat Min Exi Min Mat Used RIF Installer . | . . . . . . Robots Hacked . | . . . . . . Non-combat . | . . . . . . Combat . | . . . . . . Robot Hacks Applied . | . . . . . . Relay Couplers Released . | . . . . . . Fabnet Peak Effective % . | . . . . . . Robots Rewired . | . . . . . . Allies Hacked . | . . . . . . Hacks Repelled . | . . . . . . Allies | -11 -10 -10 -10 -9 -8 -------- Run | Yrd Mat Min Exi Min Mat Total Allies . | . . . . . . Largest Group . | . . . . . . Highest-Rated Group . | . . . . . . Highest-Rated Ally . | . . . . . . Total Orders . | . . . . . . Ally Attacks . | . . . . . . Total Damage . | . . . . . . Kills . | . . . . . . Allies Corrupted . | . . . . . . Allies Melted . | . . . . . . Intel | -11 -10 -10 -10 -9 -8 ------- Run | Yrd Mat Min Exi Min Mat Active Infowar (turns) 2278 | . 453 70 491 256 1008 Sensors 1029 | . 453 70 300 . 206 T.N.C. 1455 | . . . 191 256 1008 Robot Analysis Total . | . . . . . . Derelict Logs Recovered 2 | . . . . 2 . Drone Launches . | . . . . . . Drone Recoveries . | . . . . . . Exploration | -11 -10 -10 -10 -9 -8 ------------- Run | Yrd Mat Min Exi Min Mat Turns Passed 2402 | 45 532 70 491 256 1008 Spaces Moved 1795 | 37 396 78 543 193 548 Core 41 | 1 . . . . 40 Treads 27 | . . . . . 27 Legs . | . . . . . . Wheels 1727 | 36 396 78 543 193 481 Hover . | . . . . . . Flight . | . . . . . . Fastest Speed 50 | 50 90 90 90 90 50 Average Speed 96 | 89 90 90 90 90 111 Slowest Speed 330 | 100 90 90 90 90 330 Overloaded Moves . | . . . . . . Propulsion Burnouts . | . . . . . . Robots Hopped . | . . . . . . Potential Cave-ins . | . . . . . . Cave-ins Triggered 1 | . . . . . 1 Exploration Rate (%) 42 | 3 63 31 73 36 46 Regions Visited 5 Branch Regions 3 Pre-discovered Areas . | . . . . . . Known Exits Taken . | . . . . . . Unknown Exits Taken 5 | 1 1 1 1 1 . Scrap Searched . | . . . . . . Spaces Dug 1 | . . . . 1 . Terrain Destroyed 41 | . . . . 1 40 Melee . | . . . . . . Projectile 41 | . . . . 1 40 AOE . | . . . . . . Terrain Rammed . | . . . . . . Walls Destroyed . | . . . . . . Machines Disabled . | . . . . . . Actions | -11 -10 -10 -10 -9 -8 --------- Run | Yrd Mat Min Exi Min Mat Total 2343 | 48 561 77 544 266 847 Wait 409 | . 144 . . 67 198 Move 1790 | 36 395 77 542 192 548 Hop . | . . . . . . Pick Up 33 | 6 10 . 1 . 16 Fast Attach 1 | . . . . . 1 Attach 18 | 6 1 . . 1 10 Detach 6 | . . . . 1 5 Swap 13 | . 3 . 1 1 8 Drop 14 | . 3 . . . 11 Fire 52 | . 5 . . 4 43 Melee . | . . . . . . Ram 1 | . . . . . 1 Kick . | . . . . . . Crush 6 | . . . . . 6 Escape Stasis . | . . . . . . Rewire . | . . . . . . Trap . | . . . . . . Miscellaneous . | . . . . . . Route ------- -11/Scrapyard -10/Materials (discovered 3 exits: [*Mat] / [*Min x2]) -10/Mines -10/Exiles (discovered 2 exits: [*Min x2]) -9/Mines -8/Materials (discovered 1 exit: Fac) History --------- Turn | Location | Event 14 | -11/Scrapyard | Discovered new exit (range 16) 46 | -11/Scrapyard | Entered Materials 47 | -10/Materials | Met a group of wandering Federalists 165 | -10/Materials | Discovered new exit (range 9) 203 | -10/Materials | Lost 4 allies 213 | -10/Materials | Discovered new exit (range 12) 269 | -10/Materials | Discovered new exit (range 7) 314 | -10/Materials | Build established: Mutant 578 | -10/Materials | Entered Mines 582 | -10/Mines | Met a Derelict bent on vengeance 644 | -10/Mines | Deemed a non-threat by the Exiles lab entrance 644 | -10/Mines | Discovered new exit (range 5) 648 | -10/Mines | Entered Exiles 666 | -10/Exiles | Discovered new exit (range 15) 688 | -10/Exiles | Met 8R-AWN 703 | -10/Exiles | Met EX-HEX 737 | -10/Exiles | Met EX-DEC 784 | -10/Exiles | Discovered new exit (range 14) 879 | -10/Exiles | Met EX-BIN 890 | -10/Exiles | Aligned with FarCom system 891 | -10/Exiles | Given EX-Vault access code 936 | -10/Exiles | Opened EX-Vault 947 | -10/Exiles | Found Prototype Processor 948 | -10/Exiles | Identified Modified TNC 971 | -10/Exiles | Warned to stay clear of 0b10 Research branches 1139 | -10/Exiles | Left Exiles lab with Modified TNC 1139 | -10/Exiles | Entered Mines 1215 | -9/Mines | Learned location of 1 exit from Materials 1282 | -9/Mines | Learned Materials stockpile data 1298 | -9/Mines | Assembled infested the area 1303 | -9/Mines | Assisted by a Guerilla fighting off Assembled 1388 | -9/Mines | Discovered new exit (range 6) 1395 | -9/Mines | Entered Materials 1395 | -8/Materials | Evolved 4 slots: Utility x2, Weapon x2 1396 | -8/Materials | Identified exit to Factory 1487 | -8/Materials | Hacking Suite fried by hacking feedback 1706 | -8/Materials | Build established: Skirmisher 2175 | -8/Materials | Crushed by falling debris 2206 | -8/Materials | Lost 3 parts (1n1u1w) 2359 | -8/Materials | Core integrity fell below 50% 2401 | -8/Materials | Core integrity fell below 20% 2403 | -8/Materials | Destroyed by G-47 Trooper with Particle Gun Last Messages --------------- 02334_ Slammed into G-47 Trooper. 02337_ R-06 Scavenger collects Terrain Scanner. 02347_ U-05 Engineer builds a Wall. 02349_ Slammed into G-47 Trooper. 02351_ System corrupted: Matter fused (-7). 02351_ Slammed into G-47 Trooper. 02352_ Adv. Assault Cannon destroyed. 02354_ Slammed into G-47 Trooper. 02354_ Slug penetrates Wall. 02354_ U-05 Engineer builds a Wall. 02355_ Slammed into G-47 Trooper. 02358_ U-05 Engineer builds a Door. 02359_ Critical hit (Burn: +37). 02363_ Deuterium Engine destroyed. 02369_ Dropped Arm. Treads. 02371_ System corrupted: Matter fused (-10). 02374_ Slug penetrates Wall. 02392_ Acquired Adv. Weight Redist. System. 02397_ Penetrated by Slug. 02397_ Slammed into G-47 Trooper. Map ----- +----------------------------------------------------+ | | | | | | | | | ????????????????????#####????????????????????? | | ???????????????????# T ???????????????????? | | ???????????????????# "???????????????????? | | ???????????????????# [ ""??????????????????? | | ???????????????????# """#????#########???? | | ??????######???????# * #????# #???? | | ?????? #???????# """#????# #???? | | ?????? #???????# """#????# "" #???? | | ?????# #???????? """#????# T" #???? | | ?????# #?????????? ??????# "" #???? | | ?????# #??????????##+######### #???? | | ?????# ############ g #???? | | ?????# h ###############????? | | ?????# g #??????????????????? | | ?????# g g #??????????????????? | | ###### ########### g #???????????